fUSD/lending_fUSD_20260311
["ID","MTS","AMOUNT","RATE_DAILY","PERIOD"]
[408208193,1773240858563,3752.63884942,0.0002,120]
[408208201,1773241832088,-211.38,0.00015068,2]
[408208202,1773241832097,-171.63,0.00015329,2]
[408208203,1773241832107,-5984.94533934,0.000162,5]
[408208204,1773241832116,-1848.18,0.00016421,2]
[408208206,1773241832125,-195.0,0.00016575,2]
[408208209,1773241832134,-195.0,0.00016575,2]
[408208211,1773241832143,-195.0,0.00016575,2]
[408208214,1773241832152,-195.0,0.00016575,2]
[408208216,1773241832161,-195.0,0.00016575,2]
[408208218,1773241832170,-2632.9269785,0.00016575,2]
[408208220,1773241832179,-1000.0,0.00016661,2]
[408208222,1773241832189,-2974.58,0.000167,2]
[408208223,1773241832198,-164.71,0.0001685,2]
[408208224,1773241832207,-293.45274519,0.00017,2]
[408208225,1773241832222,-18771.88297149,0.00017,2]
[408208226,1773241832234,-2091.17394865,0.00017,2]
[408208227,1773241832243,-504.0,0.00017,2]
[408208228,1773241832252,-169.35,0.00017607,2]
[408208229,1773241832262,-354.80481573,0.000179,2]
[408208230,1773241832271,-308.1525,0.000179,2]
[408208231,1773241832280,-308.1525,0.000179,2]
[408208232,1773241832289,-308.1525,0.000179,2]
[408208233,1773241832300,-308.1525,0.000179,2]
[408208234,1773241832310,-2000.0,0.00018501,2]
[408208235,1773241832320,-200.0,0.00018585,2]
[408208236,1773241832329,-9132.37,0.00018631,2]
[408208237,1773241832338,-504.0,0.00018703,3]
[408208239,1773241832347,-150.0,0.00018888,2]
[408208241,1773241832356,-150.3098345,0.00018999,2]
[408208243,1773241832365,-15115.11051307,0.00019,2]
[408208244,1773241832376,-367.15397449,0.00019,2]
[408208245,1773241832387,-6455.53374358,0.00019,2]
[408208246,1773241832396,-150.0,0.00019058,2]
[408208247,1773241832405,-500.0,0.00019135,2]
[408208248,1773241832414,-500.0,0.00019135,2]
[408208249,1773241832424,-500.0,0.00019135,2]
[408208250,1773241832433,-270.40393298,0.00019135,2]
[408208251,1773241832444,-500.0,0.00019135,2]
[408208252,1773241832454,-500.0,0.00019135,2]
[408208253,1773241832463,-500.0,0.00019135,2]
[408208254,1773241832473,-196.65,0.00019161,2]
[408208255,1773241832483,-522.26839186,0.00019161,2]
[408208256,1773241832502,-510.78051524,0.00019161,2]
[408208257,1773241832514,-583.8510929,0.00019161,2]
[408208258,1773241832525,-40.50678638,0.00019161,2]
[408208259,1773241832536,-290.44081,0.00019161,2]
[408208263,1773241838228,-1169.05240362,0.00019161,2]
[408208264,1773241838238,-2000.0,0.000192,2]
[408208265,1773241838247,-1000.0,0.00019253,2]
[408208266,1773241838256,-1320.54897698,0.00019339,2]
[408208267,1773241838475,-426.61846658,0.00019339,2]
[408208303,1773241840478,-6388.39255644,0.00019339,2]
[408208305,1773241840488,-2532.2,0.00019339,2]
[408208307,1773241840497,-3446.0,0.00019352,2]
[408208309,1773241840507,-200.0,0.000195,7]
[408208311,1773241840516,-1000.0,0.00019527,2]
[408208312,1773241840525,-400.0,0.000196,7]
[408208313,1773241840535,-188.0,0.0001968,2]
[408208314,1773241840544,-1057.0,0.00019682,2]
[408208315,1773241840554,-600.0,0.000197,7]
[408208316,1773241840563,-150.0,0.00019725,2]
[408208317,1773241840573,-250.0,0.00019725,2]
[408208318,1773241840582,-500.0,0.00019725,2]
[408208319,1773241840591,-500.0,0.00019725,2]
[408208320,1773241840600,-150.0,0.00019725,2]
[408208321,1773241840609,-150.0,0.00019725,2]
[408208322,1773241840618,-150.0,0.00019725,2]
[408208323,1773241840627,-150.0,0.00019725,2]
[408208324,1773241840640,-455.0,0.00019725,2]
[408208325,1773241840653,-500.0,0.00019725,2]
[408208326,1773241840663,-150.0,0.00019725,2]
[408208327,1773241840672,-150.0,0.00019725,2]
[408208328,1773241840683,-150.0,0.00019725,2]
[408208329,1773241840692,-500.0,0.00019725,2]
[408208330,1773241840703,-150.0,0.00019725,2]
[408208331,1773241840712,-500.0,0.00019725,2]
[408208332,1773241840723,-177.99151511,0.00019725,2]
[408208333,1773241840733,-150.0,0.00019725,2]
[408208334,1773241840742,-150.0,0.00019725,2]
[408208335,1773241840752,-150.0,0.00019725,2]
[408208336,1773241840761,-150.0,0.00019725,2]
[408208337,1773241840771,-150.0,0.00019725,2]
[408208338,1773241840780,-150.0,0.00019725,2]
[408208339,1773241840790,-150.0,0.00019726,2]
[408208340,1773241840800,-152.96458514,0.00019726,2]
[408208341,1773241840812,-150.0,0.00019726,2]
[408208342,1773241840821,-179.08949688,0.00019726,2]
[408208343,1773241840830,-150.0,0.00019726,2]
[408208344,1773241840839,-200.0,0.00019758,2]
[408208345,1773241840848,-200.0,0.0001978,2]
[408208346,1773241840857,-500.0,0.0001978,2]
[408208347,1773241840867,-500.0,0.0001978,2]
[408208348,1773241840876,-150.0,0.0001978,2]
[408208349,1773241840886,-150.0,0.0001978,2]
[408208350,1773241840896,-150.0,0.0001978,2]
[408208351,1773241840905,-150.0,0.0001978,2]
[408208352,1773241840914,-455.0,0.0001978,2]
[408208353,1773241840923,-640.0,0.0001978,2]
[408208354,1773241840933,-205.0,0.0001978,2]
[408208355,1773241840942,-150.0,0.0001978,2]
[408208356,1773241840953,-598.0,0.0001978,2]
[408208357,1773241840963,-500.0,0.0001978,2]
[408208358,1773241840973,-150.0,0.0001978,2]
[408208359,1773241840983,-150.0,0.0001978,2]
[408208360,1773241840992,-150.0,0.0001978,2]
[408208361,1773241841002,-150.0,0.0001978,2]
[408208362,1773241841011,-250.0,0.0001978,2]
[408208363,1773241841020,-150.0,0.00019781,2]
[408208364,1773241841030,-150.0,0.00019781,2]
[408208365,1773241841049,-800.0,0.000198,7]
[408208366,1773241841059,-1788.54612338,0.000198,2]
[408208367,1773241841068,-1000.0,0.00019801,2]
[408208368,1773241841079,-500.0,0.00019809,2]
[408208369,1773241841089,-500.0,0.00019809,2]
[408208370,1773241841104,-500.0,0.00019809,2]
[408208371,1773241841113,-502.25944684,0.00019809,2]
[408208372,1773241841123,-500.0,0.00019809,2]
[408208373,1773241841132,-500.0,0.00019809,2]
[408208374,1773241841141,-485.07925419,0.00019809,2]
[408208375,1773241841151,-250.0,0.0001981,2]
[408208376,1773241841160,-1788.54612333,0.00019811,2]
[408208377,1773241841170,-1788.54612333,0.00019822,2]
[408208378,1773241841179,-1788.54612333,0.00019833,2]
[408208379,1773241841189,-500.0,0.00019835,2]
[408208380,1773241841201,-150.0,0.00019835,2]
[408208382,1773241841210,-150.0,0.00019835,2]
[408208383,1773241841219,-150.0,0.00019835,2]
[408208384,1773241841229,-150.0,0.00019835,2]
[408208385,1773241841238,-200.0,0.00019835,2]
[408208386,1773241841248,-455.0,0.00019835,2]
[408208387,1773241841257,-200.0,0.00019835,2]
[408208388,1773241841266,-500.0,0.00019835,2]
[408208389,1773241841276,-150.0,0.00019835,2]
[408208390,1773241841286,-150.0,0.00019835,2]
[408208391,1773241841555,-150.0,0.00019835,2]
[408208392,1773241841565,-250.0,0.00019835,2]
[408208393,1773241841574,-200.0,0.00019836,2]
[408208394,1773241841584,-200.0,0.00019836,2]
[408208395,1773241841594,-200.0,0.0001984,2]
[408208396,1773241841603,-1788.54612333,0.00019844,2]
[408208397,1773241841612,-1788.54612333,0.00019856,2]
[408208398,1773241841622,-1788.54612333,0.00019867,2]
[408208399,1773241841632,-250.0,0.00019867,2]
[408208400,1773241841642,-2069.176,0.00019873,2]
[408208401,1773241841655,-1788.54612333,0.00019878,2]
[408208402,1773241841665,-1788.54612333,0.00019889,2]
[408208403,1773241841675,-446.75850977,0.00019889,2]
[408208404,1773241841684,-150.0,0.00019889,2]
[408208405,1773241841698,-169.0,0.00019889,2]
[408208406,1773241841709,-150.0,0.00019889,2]
[408208407,1773241841720,-455.0,0.00019889,2]
[408208408,1773241841729,-500.0,0.00019889,2]
[408208409,1773241841746,-150.0,0.00019889,2]
[408208410,1773241841756,-150.0,0.00019889,2]
[408208411,1773241841765,-150.0,0.00019889,2]
[408208412,1773241841775,-363.9842,0.00019899,2]
[408208413,1773241841785,-813.7623,0.00019899,2]
[408208414,1773241841794,-771.89123816,0.00019899,2]
[408208415,1773241841803,-4889.95853143,0.00019899,2]
[408208416,1773241841812,-771.89123816,0.00019899,2]
[408208417,1773241841822,-771.89123816,0.00019899,2]
[408208418,1773241841831,-771.89123816,0.00019899,2]
[408208419,1773241841841,-771.89123816,0.00019899,2]
[408208420,1773241841850,-771.89123816,0.000199,2]
[408208421,1773241841859,-771.89123816,0.000199,2]
[408208422,1773241841870,-771.89123816,0.000199,2]
[408208423,1773241841879,-771.89123816,0.000199,2]
[408208424,1773241841888,-3138.8741,0.000199,2]
[408208425,1773241841897,-458.1256796,0.000199,2]
[408208426,1773241841906,-250.0,0.000199,2]
[408208427,1773241841917,-692.8597716,0.000199,2]
[408208428,1773241841926,-1000.0,0.000199,7]
[408208429,1773241841936,-1788.54612333,0.000199,2]
[408208430,1773241841947,-771.89123816,0.000199,2]
[408208431,1773241841957,-1579.90723878,0.000199,2]
[408208432,1773241841966,-1278.03723674,0.000199,2]
[408208433,1773241841975,-641.19687878,0.000199,2]
[408208434,1773241841985,-250.0,0.00019944,2]
[408208435,1773241841994,-224.0,0.00019944,2]
[408208436,1773241842005,-258.55616401,0.00019944,2]
[408208437,1773241842025,-455.0,0.00019944,2]
[408208438,1773241842034,-500.0,0.00019944,2]
[408208439,1773241842043,-150.0,0.00019944,2]
[408208440,1773241842052,-200.0,0.00019944,2]
[408208441,1773241842062,-259.0,0.00019944,2]
[408208442,1773241842071,-3664.0,0.00019973,2]
[408208443,1773241842081,-2393.0,0.00019973,2]
[408208444,1773241842090,-250.0,0.00019973,2]
[408208445,1773241842099,-150.0,0.0001999,2]
[408208446,1773241842108,-163.0414609,0.0001999,2]
[408208447,1773241842117,-151.0,0.00019997,2]
[408208448,1773241842126,-151.0,0.00019997,2]
[408208449,1773241842138,-151.0,0.00019997,2]
[408208450,1773241842147,-500.0,0.00019998,2]
[408208451,1773241842156,-500.0,0.00019998,2]
[408208452,1773241842166,-500.0,0.00019998,2]
[408208453,1773241842175,-500.0,0.00019998,2]
[408208454,1773241842185,-550.42757363,0.00019998,2]
[408208455,1773241842195,-500.0,0.00019998,2]
[408208456,1773241842204,-500.0,0.00019998,2]
[408208457,1773241842213,-500.0,0.00019998,2]
[408208458,1773241842223,-500.0,0.00019998,2]
[408208459,1773241842232,-500.0,0.00019998,2]
[408208460,1773241842241,-500.0,0.00019998,2]
[408208461,1773241842250,-554.34014391,0.00019998,2]
[408208462,1773241842260,-500.0,0.00019998,2]
[408208463,1773241842269,-500.0,0.00019998,2]
[408208464,1773241842280,-500.0,0.00019998,2]
[408208465,1773241842289,-500.0,0.00019998,2]
[408208466,1773241842298,-500.0,0.00019998,2]
[408208467,1773241842308,-500.0,0.00019998,2]
[408208468,1773241842317,-500.0,0.00019998,2]
[408208469,1773241842326,-500.0,0.00019998,2]
[408208470,1773241842335,-500.0,0.00019998,2]
[408208471,1773241842344,-500.0,0.00019998,2]
[408208472,1773241842353,-500.0,0.00019998,2]
[408208473,1773241842362,-500.0,0.00019998,2]
[408208474,1773241842371,-500.0,0.00019998,2]
[408208475,1773241842380,-500.0,0.00019998,2]
[408208476,1773241842389,-500.0,0.00019998,2]
[408208477,1773241842399,-1178.39,0.00019998,2]
[408208478,1773241842408,-1178.39,0.00019998,2]
[408208479,1773241842417,-455.0,0.00019999,2]
[408208480,1773241842426,-500.0,0.00019999,2]
[408208481,1773241842435,-250.0,0.00019999,2]
[408208482,1773241842446,-300.0,0.00019999,2]
[408208483,1773241842455,-11633.8621276,0.00019999,2]
[408208484,1773241842464,-314621.5903326,0.00019999,2]
[408208485,1773241842474,-500.0,0.00019999,2]
[408208486,1773241842483,-500.0,0.00019999,2]
[408208487,1773241842493,-418.89651784,0.00019999,2]
[408208488,1773241842502,-500.0,0.00019999,2]
[408208489,1773241842512,-333.80551454,0.00019999,2]
[408208490,1773241842521,-500.0,0.00019999,2]
[408208491,1773241842533,-531.3103933,0.00019999,2]
[408208492,1773241842542,-2209.7060546,0.00019999,2]
[408208493,1773241842551,-500.0,0.00019999,2]
[408208494,1773241842560,-500.0,0.00019999,2]
[408208495,1773241842569,-500.0,0.00019999,2]
[408208496,1773241842579,-500.0,0.00019999,2]
[408208497,1773241842588,-366.62040222,0.00019999,2]
[408208498,1773241842597,-500.0,0.00019999,2]
[408208499,1773241842606,-500.0,0.00019999,2]
[408208500,1773241842615,-500.0,0.00019999,2]
[408208501,1773241842625,-436.3340644,0.00019999,2]
[408208502,1773241842634,-154955.7075986,0.00019999,2]
[408208503,1773241842644,-397.97236465,0.00019999,2]
[408208504,1773241842657,-500.0,0.00019999,2]
[408208505,1773241842666,-500.0,0.00019999,2]
[408208506,1773241842675,-191.39028097,0.00019999,2]
[408208507,1773241842684,-500.0,0.00019999,2]
[408208508,1773241842696,-500.0,0.00019999,2]
[408208509,1773241842706,-507.73038979,0.00019999,2]
[408208510,1773241842715,-2793.9369216,0.00019999,2]
[408208511,1773241842725,-500.0,0.00019999,2]
[408208512,1773241842736,-500.0,0.00019999,2]
[408208513,1773241842745,-500.0,0.00019999,2]
[408208514,1773241842755,-500.0,0.00019999,2]
[408208515,1773241842764,-500.0,0.00019999,2]
[408208516,1773241842774,-500.0,0.00019999,2]
[408208517,1773241842784,-500.0,0.00019999,2]
[408208518,1773241842793,-500.0,0.00019999,2]
[408208519,1773241842803,-500.0,0.00019999,2]
[408208520,1773241842811,-500.0,0.00019999,2]
[408208521,1773241842821,-500.0,0.00019999,2]
[408208522,1773241842829,-500.0,0.00019999,2]
[408208523,1773241842838,-500.0,0.00019999,2]
[408208524,1773241842847,-500.0,0.00019999,2]
[408208525,1773241842856,-500.0,0.00019999,2]
[408208526,1773241842865,-527.47030383,0.00019999,2]
[408208527,1773241842875,-500.0,0.00019999,2]
[408208528,1773241842884,-505.78229935,0.00019999,2]
[408208529,1773241842894,-500.0,0.00019999,2]
[408208530,1773241842903,-506.77106008,0.00019999,2]
[408208531,1773241842916,-3000.0,0.00019999,2]
[408208532,1773241842926,-3000.0,0.00019999,7]
[408208533,1773241842936,-1178.39,0.00019999,2]
[408208534,1773241842946,-1178.39,0.00019999,2]
[408208535,1773241842955,-1178.39,0.00019999,2]
[408208536,1773241842964,-1178.39,0.00019999,2]
[408208537,1773241842973,-1178.39,0.00019999,2]
[408208538,1773241842983,-1178.39,0.00019999,2]
[408208539,1773241842992,-1178.39,0.00019999,2]
[408208540,1773241843002,-1178.39,0.00019999,2]
[408208541,1773241843011,-1178.39,0.00019999,2]
[408208542,1773241843020,-1178.39,0.00019999,2]
[408208543,1773241843029,-1178.39,0.00019999,2]
[408208544,1773241843038,-1178.39,0.00019999,2]
[408208545,1773241843046,-1178.39,0.00019999,2]
[408208546,1773241843054,-1178.39,0.00019999,2]
[408208547,1773241843063,-1178.39,0.00019999,2]
[408208548,1773241843072,-1178.39,0.00019999,2]
[408208549,1773241843080,-1178.39,0.00019999,2]
[408208550,1773241843089,-1178.39,0.00019999,2]
[408208551,1773241843098,-1178.39,0.00019999,2]
[408208552,1773241843106,-1178.39,0.00019999,2]
[408208553,1773241843115,-1178.39,0.00019999,2]
[408208554,1773241843123,-1178.53974593,0.00019999,2]
[408208555,1773241843131,-540.06969346,0.00019999,2]
[408208556,1773241843139,-302.05324321,0.00019999,2]
[408208557,1773241843147,-500.0,0.00019999,2]
[408208558,1773241843155,-299.993729,0.00019999,2]
[408208559,1773241843164,-500.0,0.00019999,2]
[408208560,1773241843172,-500.0,0.00019999,2]
[408208561,1773241843181,-364.97685461,0.00019999,2]
[408208562,1773241843190,-170.92243951,0.00019999,2]
[408208563,1773241843199,-2796.0,0.0002,2]
[408208564,1773241843208,-2445.0,0.0002,2]
[408208565,1773241843216,-557178.93124784,0.0002,2]
[408208566,1773241843233,-9507.84582319,0.0002,2]
[408208567,1773241843244,-60865.80457371,0.0002,2]
[408208568,1773241843254,-271.69640158,0.0002,2]
[408208569,1773241843801,-322.72433459,0.0002,2]
[408208570,1773241843813,-231018.58683289,0.0002,2]
[408208571,1773241843822,-46116.45,0.0002,2]
[408208572,1773241843831,-2876.9,0.0002,2]
[408208573,1773241843840,-843.32657163,0.0002,2]
[408208574,1773241843849,-2486.11730141,0.0002,2]
[408208575,1773241843858,-158.53,0.0002,7]
[408208576,1773241843867,-1079.08320246,0.0002,2]
[408208577,1773241843879,-747.93679754,0.0002,2]
[408208578,1773241843888,-200.0,0.0002,2]
[408208579,1773241843897,-159.0000009,0.0002,2]
[408208580,1773241843906,-150.0,0.0002,2]
[408208581,1773241843916,-4694.03274584,0.0002,2]
[408208582,1773241843925,-1315.91612491,0.0002,2]
[408208583,1773241843935,-200.0,0.0002,2]
[408208584,1773241843944,-237.83391358,0.0002,2]
[408208585,1773241843953,-45160.10968628,0.0002,2]
[408208586,1773241843964,-14927.86636178,0.0002,2]
[408208591,1773241846296,-11972.2456787,0.0002,2]
[408208603,1773242664952,196.21,9.197e-05,2]
[408208604,1773242665390,196.21,9.681e-05,2]
[408208605,1773242665628,196.21,0.00010165,2]
[408208606,1773242665851,196.21,0.00010649,2]
[408208607,1773242666174,196.21,0.00011133,2]
[408208608,1773242666417,196.21,0.00011617,2]
[408208609,1773242666687,196.21,0.00012101,2]
[408208610,1773242666912,196.21,0.00012585,2]
[408208611,1773242667139,196.21,0.00013069,2]
[408208612,1773242667359,196.21,0.00013553,2]
[408208613,1773242667579,196.21,0.00014037,2]
[408208615,1773242734497,505.18,0.0002,120]
[408208616,1773242948143,-196.21,0.00014521,2]
[408208633,1773243031334,-196.21,0.00015005,2]
[408208634,1773243031344,-196.21,0.00015489,2]
[408208635,1773243031354,-258.22282203,0.00015799,2]
[408208636,1773243031363,-196.21,0.00015974,2]
[408208637,1773243031372,-196.21,0.00016458,2]
[408208638,1773243031383,-166.66,0.00016528,2]
[408208639,1773243031392,-166.66,0.00016876,2]
[408208640,1773243031402,-196.21,0.00016942,2]
[408208641,1773243031411,-504.0,0.00017,2]
[408208642,1773243031420,-64963.16519602,0.00017,2]
[408208643,1773243031432,-14347.49216365,0.00017,2]
[408208644,1773243031443,-24030.34264033,0.00017,2]
[408208645,1773243031452,-226.85,0.00017029,2]
[408208646,1773243031462,-266.4641917,0.00017151,2]
[408208647,1773243031475,-166.66,0.00017224,2]
[408208648,1773243031484,-300.0,0.00017299,2]
[408208649,1773243031493,-1200.0,0.00017299,2]
[408208650,1773243031503,-196.21,0.00017426,2]
[408208651,1773243031512,-500.0,0.00017452,2]
[408208652,1773243031530,-647.54,0.00017477,2]
[408208653,1773243031541,-166.66,0.00017572,2]
[408208654,1773243031551,-3796.16775591,0.00017801,2]
[408208655,1773243031566,-1756.31704,0.00017801,2]
[408208656,1773243031577,-428.83006423,0.00017801,2]
[408208657,1773243031588,-1873.90775827,0.00017801,2]
[408208658,1773243031598,-228.28,0.00017875,2]
[408208659,1773243031607,-226.85,0.0001788,2]
[408208660,1773243031616,-196.21,0.0001791,2]
[408208661,1773243031625,-166.66,0.0001792,2]
[408208662,1773243031635,-406.63196686,0.00018091,2]
[408208663,1773243031644,-166.66,0.00018268,2]
[408208664,1773243031653,-5533.0,0.000183,3]
[408208665,1773243031663,-228.28,0.00018321,2]
[408208666,1773243031672,-196.21,0.00018394,2]
[408208667,1773243031681,-500.0,0.00018506,2]
[408208668,1773243031690,-5279.6877,0.00018531,2]
[408208670,1773243031699,-500.0,0.00018562,2]
[408208672,1773243031708,-1268.89950647,0.00018652,2]
[408208674,1773243031719,-1002.08186317,0.00018699,2]
[408208675,1773243031728,-226.85,0.00018732,2]
[408208677,1773243031738,-1350.029,0.00018752,2]
[408208680,1773243031748,-228.28,0.00018768,2]
[408208682,1773243031757,-500.0,0.00018773,2]
[408208683,1773243031766,-504.0,0.000188,3]
[408208685,1773243031776,-11944.51885609,0.00018852,2]
[408208692,1773243032033,-2445.95087844,0.00018852,2]
[408208697,1773243037396,-10044.7408836,0.00018852,2]
[408208698,1773243037557,-1719.365143,0.00018852,2]
[408208699,1773243037728,-67376.65423887,0.00018852,2]
[408208700,1773243037738,-623.34576113,0.00018889,2]
[408208749,1773243040180,-701.94423887,0.00018889,2]
[408208750,1773243040190,-420.0,0.00018889,2]
[408208751,1773243040200,-500.0,0.00018934,2]
[408208752,1773243040209,-3003.4958,0.00018935,2]
[408208753,1773243040218,-1680.0,0.00018982,2]
[408208754,1773243040229,-3792.75,0.00019015,2]
[408208755,1773243040239,-350.0,0.00019023,2]
[408208756,1773243040248,-275.65,0.00019024,2]
[408208757,1773243040257,-350.0,0.00019072,2]
[408208758,1773243040266,-335.25,0.00019129,2]
[408208759,1773243040275,-350.0,0.00019139,2]
[408208760,1773243040285,-350.0,0.0001916,2]
[408208761,1773243040294,-228.28,0.00019215,2]
[408208762,1773243040303,-350.0,0.00019219,2]
[408208763,1773243040311,-5191.12580251,0.00019239,2]
[408208764,1773243040320,-1000.0,0.00019253,2]
[408208765,1773243040330,-275.65,0.00019298,2]
[408208766,1773243040339,-2500.0,0.000193,2]
[408208767,1773243040347,-358.61,0.00019312,2]
[408208768,1773243040356,-9999.99,0.00019339,2]
[408208769,1773243040366,-150.99,0.00019339,2]
[408208770,1773243040375,-2061.31,0.00019339,2]
[408208771,1773243040383,-312.21,0.00019339,2]
[408208772,1773243040393,-9999.99,0.00019339,2]
[408208773,1773243040402,-9999.99,0.00019339,2]
[408208774,1773243040411,-5027.71,0.00019339,2]
[408208775,1773243040419,-3715.98,0.00019339,2]
[408208776,1773243040428,-999.99,0.00019339,2]
[408208777,1773243040438,-500.0,0.00019388,2]
[408208778,1773243040447,-500.0,0.00019388,2]
[408208779,1773243040456,-500.0,0.00019388,2]
[408208780,1773243040465,-500.0,0.00019388,2]
[408208781,1773243040475,-500.0,0.00019388,2]
[408208782,1773243040485,-500.0,0.00019388,2]
[408208783,1773243040494,-500.0,0.00019388,2]
[408208784,1773243040503,-500.0,0.00019388,2]
[408208785,1773243040512,-500.0,0.00019388,2]
[408208786,1773243040522,-500.0,0.00019388,2]
[408208787,1773243040531,-500.0,0.00019388,2]
[408208788,1773243040541,-500.0,0.00019388,2]
[408208789,1773243040551,-250.0,0.00019388,2]
[408208790,1773243040562,-250.0,0.00019388,2]
[408208791,1773243040572,-259.68725688,0.00019388,2]
[408208792,1773243040582,-250.0,0.00019388,2]
[408208793,1773243040591,-250.0,0.00019388,2]
[408208794,1773243040600,-250.0,0.00019388,2]
[408208795,1773243040609,-250.0,0.00019388,2]
[408208796,1773243040618,-250.0,0.00019388,2]
[408208797,1773243040628,-250.0,0.00019388,2]
[408208798,1773243040637,-250.0,0.00019388,2]
[408208799,1773243040646,-250.0,0.00019388,2]
[408208800,1773243040656,-250.0,0.00019388,2]
[408208801,1773243040665,-250.0,0.00019388,2]
[408208802,1773243040675,-250.0,0.00019388,2]
[408208803,1773243040684,-250.0,0.00019388,2]
[408208804,1773243040693,-500.0,0.00019399,2]
[408208805,1773243040703,-1268.89950638,0.00019434,2]
[408208806,1773243040712,-291.34391315,0.0001947,2]
[408208807,1773243040721,-700.0,0.000195,7]
[408208808,1773243040729,-5533.0,0.000195,5]
[408208809,1773243040739,-1000.0,0.00019527,2]
[408208810,1773243040749,-168.0,0.00019543,2]
[408208811,1773243040759,-275.67,0.00019572,2]
[408208812,1773243040768,-226.85,0.00019583,2]
[408208813,1773243040777,-1400.0,0.000196,7]
[408208814,1773243040786,-268.69640585,0.00019625,2]
[408208815,1773243040795,-647.54,0.00019662,2]
[408208816,1773243040803,-228.28,0.00019662,2]
[408208817,1773243040813,-168.0,0.0001967,2]
[408208818,1773243040821,-335.25,0.0001969,2]
[408208819,1773243040830,-500.0,0.00019699,2]
[408208820,1773243040839,-500.0,0.00019699,2]
[408208821,1773243040848,-500.0,0.00019699,2]
[408208822,1773243040857,-500.0,0.00019699,2]
[408208823,1773243040866,-500.0,0.00019699,2]
[408208824,1773243040876,-538.64796971,0.00019699,2]
[408208825,1773243040884,-500.0,0.00019699,2]
[408208826,1773243040893,-500.0,0.00019699,2]
[408208827,1773243040903,-500.0,0.00019699,2]
[408208828,1773243040924,-2000.0,0.000197,2]
[408208829,1773243040933,-2200.0,0.000197,7]
[408208830,1773243040942,-172.95802059,0.00019718,2]
[408208831,1773243040951,-150.0,0.00019725,2]
[408208832,1773243040960,-500.0,0.00019725,2]
[408208833,1773243040971,-150.0,0.00019725,2]
[408208834,1773243040979,-150.0,0.00019725,2]
[408208835,1773243040988,-285.50154825,0.00019725,2]
[408208836,1773243040998,-150.0,0.00019725,2]
[408208837,1773243041006,-150.0,0.00019725,2]
[408208838,1773243041015,-150.0,0.00019725,2]
[408208839,1773243041024,-150.0,0.00019725,2]
[408208840,1773243041034,-150.0,0.00019725,2]
[408208841,1773243041044,-150.0,0.00019725,2]
[408208842,1773243041055,-150.0,0.00019725,2]
[408208843,1773243041064,-150.0,0.00019725,2]
[408208844,1773243041074,-150.0,0.00019725,2]
[408208845,1773243041083,-500.0,0.00019725,2]
[408208846,1773243041092,-500.0,0.00019725,2]
[408208847,1773243041101,-500.0,0.00019725,2]
[408208848,1773243041110,-150.0,0.00019725,2]
[408208849,1773243041121,-150.0,0.00019725,2]
[408208850,1773243041130,-500.0,0.00019725,2]
[408208851,1773243041140,-447.0,0.00019725,2]
[408208852,1773243041149,-500.0,0.00019725,2]
[408208853,1773243041158,-500.0,0.00019725,2]